bitfinex/quotes_SOLUSD_20251025
["timestamp","ask_amount","ask_price","bid_price","bid_amount"]
[1761369776555,0.9,194.27,194.26,54.14874292]
[1761369781351,0.9,194.27,194.26,18.56874292]
[1761369781550,0.9,194.27,194.26,54.14874292]
[1761369785475,0.9,194.27,194.26,51.60421535]
[1761369785677,0.9,194.27,194.26,54.14874292]
[1761369787675,0.2,194.27,194.26,54.85874292]
[1761369795569,0.2,194.27,194.26,54.14874292]
[1761369797770,0.87,194.27,194.26,77.00874292]
[1761369798291,0.87,194.27,194.26,41.44874292]
[1761369798487,0.87,194.27,194.26,77.00874292]
[1761369798688,0.87,194.27,194.26,18.56874292]
[1761369798985,0.87,194.27,194.26,54.12874292]
[1761369804585,0.87,194.27,194.22,5.14880032]
[1761369804772,0.66,194.26,194.22,7.69332789]
[1761369804973,0.66,194.26,194.23,2.54452757]
[1761369805593,0.66,194.26,194.22,7.69332789]
[1761369806083,0.66,194.26,194.22,5.14880032]
[1761369806780,0.66,194.26,194.22,13.42100278]
[1761369807997,0.66,194.26,194.23,5.14853524]
[1761369808791,0.66,194.26,194.23,40.70853524]
[1761369808980,5.66548024,194.26,194.23,40.70853524]
[1761369809903,0.66,194.25,194.23,40.70853524]
[1761369811292,0.66,194.25,194.22,5.14873868]
[1761369811488,0.66,194.25,194.22,40.70873868]
[1761369811690,7.55000781,194.24,194.22,40.70873868]
[1761369812090,0.66,194.23,194.22,40.70873868]
[1761369813200,0.66,194.23,194.16,5.15039142]
[1761369813499,0.66,194.23,194.19,2.54452757]
[1761369813891,10.09453538,194.22,194.19,2.54452757]
[1761369814393,10.09453538,194.22,194.2,5.14933058]
[1761369814704,0.66,194.21,194.2,5.14933058]
[1761369818086,0.66,194.21,194.19,2.54452757]
[1761369818087,0.66,194.21,194.18,5.14986095]
[1761369818288,0.66,194.21,194.19,2.54452757]
[1761369819892,0.66,194.21,194.2,5.14933058]
[1761369820984,0.66,194.21,194.2,2.54452757]
[1761369821181,0.66,194.21,194.18,5.14986095]
[1761369821383,0.66,194.21,194.2,2.54452757]
[1761369823104,0.66,194.21,194.2,7.69385815]
[1761369825504,0.66,194.21,194.2,5.14933058]
[1761369825810,0.66,194.21,194.2,7.69385815]
[1761369826705,0.66,194.21,194.18,18.02451333]
[1761369826911,0.66,194.21,194.2,2.54452757]
[1761369828715,0.66,194.21,194.2,6.77913101]
[1761369830108,0.66,194.21,194.2,5.14933058]
[1761369830412,0.66,194.21,194.2,6.77913101]
[1761369832015,0.66,194.21,194.2,5.14933058]
[1761369832202,0.66,194.21,194.2,6.77913101]
[1761369836001,0.66,194.21,194.2,5.14933058]
[1761369836203,0.66,194.21,194.2,42.35913101]
[1761369837319,6.77755375,194.23,194.2,55.23245747]
[1761369837516,1.82980043,194.27,194.22,1.62980043]
[1761369837717,0.68,194.25,194.22,37.20980043]
[1761369838416,16.14272195,194.25,194.23,5.14853524]
[1761369839104,16.14272195,194.25,194.23,6.77833567]
[1761369839322,0.7,194.24,194.23,6.77833567]
[1761369839521,0.7,194.24,194.23,1.62980043]
[1761369840501,0.7,194.24,194.22,42.35853368]
[1761369841318,0.7,194.24,194.22,40.72873325]
[1761369842107,16.16272195,194.24,194.22,40.72873325]
[1761369842311,16.16272195,194.24,194.22,35.58]
[1761369842623,0.7,194.23,194.21,5.14903768]
[1761369843820,16.16272195,194.23,194.21,5.14903768]
[1761369844005,0.7,194.22,194.21,5.14903768]
[1761369854933,0.7,194.22,194.2,37.20980043]
[1761369855452,0.7,194.22,194.2,42.35905178]
[1761369859744,0.7,194.22,194.19,42.35937231]
[1761369860141,0.7,194.22,194.18,5.14985528]
[1761369860444,0.7,194.22,194.18,42.35965571]
[1761369861334,0.7,194.22,194.18,37.20980043]
[1761369861533,0.7,194.22,194.18,40.72980553]
[1761369861846,0.7,194.22,194.18,42.35960596]
[1761369864037,0.7,194.22,194.18,5.14980553]
[1761369864325,0.7,194.22,194.19,1.62980043]
[1761369865250,0.7,194.22,194.19,6.77933676]
[1761369868656,16.16591055,194.22,194.19,6.77933676]
[1761369869030,0.71,194.21,194.19,6.77933676]
[1761369873856,0.71,194.21,194.18,6.77965397]
[1761369874162,16.17591055,194.21,194.18,5.14985354]
[1761369874344,0.71,194.2,194.18,5.14985354]
[1761369878164,0.71,194.2,194.18,1.62980043]
[1761369878863,0.71,194.2,194.17,5.15012617]
[1761369879048,0.71,194.2,194.18,1.62980043]
[1761369880360,0.71,194.2,194.17,5.15012617]
[1761369880659,0.71,194.2,194.17,6.7799266]
[1761369881471,0.71,194.2,194.17,5.15012617]
[1761369881760,15.46591055,194.19,194.17,6.7799266]
[1761369882166,15.46591055,194.19,194.17,5.15012617]
[1761369882368,16.17591055,194.19,194.17,6.7799266]
[1761369883347,0.71,194.18,194.17,6.7799266]
[1761369883548,0.71,194.18,194.17,5.15012617]
[1761369883852,0.71,194.18,194.17,6.7799266]
[1761369884245,0.71,194.18,194.17,5.15012617]
[1761369884445,0.71,194.18,194.16,35.56]
[1761369884652,0.71,194.18,194.16,37.18980043]
[1761369884864,0.71,194.18,194.16,1.62980043]
[1761369885163,0.71,194.18,194.15,6.78019657]
[1761369886462,0.71,194.18,194.15,1.62980043]
[1761369886669,0.71,194.18,194.14,5.1508982]
[1761369887550,15.46910047,194.17,194.14,5.1508982]
[1761369887951,0.71,194.16,194.14,5.1508982]
[1761369888950,0.71,194.16,194.14,7.69914952]
[1761369889156,0.71,194.19,194.15,3.21825132]
[1761369889371,15.46910047,194.17,194.15,2.54825132]
[1761369889869,16.18910047,194.17,194.15,2.54825132]
[1761369890469,16.18910047,194.17,194.15,7.69874471]
[1761369890764,16.18910047,194.17,194.15,5.15049339]
[1761369890965,0.72,194.16,194.15,5.15049339]
[1761369893962,0.72,194.16,194.14,5.15085789]
[1761369894362,16.18910047,194.16,194.14,5.15085789]
[1761369894873,0.72,194.15,194.14,5.15085789]
[1761369896182,0.72,194.15,194.13,7.69943866]
[1761369898969,0.72,194.15,194.13,5.15118734]
[1761369900473,0.72,194.15,194.1,2.54825132]
[1761369900677,2.54825132,194.11,194.07,20.62188039]
[1761369900888,2.54825132,194.1,194.07,5.15277992]
[1761369901060,3.25825132,194.1,194.07,5.15277992]
[1761369901376,16.17910047,194.09,194.07,5.15277992]
[1761369901760,0.71,194.09,194.07,5.15277992]
[1761369902055,15.47468599,194.08,194.07,5.15277992]
[1761369902478,16.18468599,194.08,194.07,5.15277992]
[1761369906381,0.71,194.08,194.07,5.15277992]
[1761369907263,0.71,194.08,194.06,5.15304544]
[1761369907469,0.71,194.08,194.04,2.54825132]
[1761369907670,0.71,194.08,194.04,38.12825132]
[1761369908458,0.71,194.08,194.04,43.28156333]
[1761369910774,0.71,194.08,194.04,56.16550478]
[1761369911083,0.71,194.08,194.04,20.58550478]
[1761369912081,0.71,194.08,194.04,5.15331201]
[1761369912586,16.18468599,194.08,194.04,5.15331201]
[1761369913081,0.71,194.07,194.04,5.15331201]
[1761369913884,0.71,194.07,194.04,7.70156333]
[1761369919495,0.71,194.07,194.03,5.15361909]
[1761369919672,16.18468599,194.07,194.03,7.70187041]
[1761369920074,0.7,194.06,194.03,7.70187041]
[1761369922083,0.7,194.06,194.02,5.15405227]
[1761369922277,3.24825132,194.06,194.02,5.15405227]
[1761369922484,16.17468599,194.05,194.02,5.15405227]
[1761369922685,16.17468599,194.05,194.01,5.15431254]
[1761369922886,0.7,194.04,194.01,5.15431254]
[1761369923775,0.7,194.04,194.0,5.15463917]
[1761369924192,18.72852686,194.04,193.98,65.16885844]
[1761369924392,18.72852686,194.04,193.98,67.04710976]
[1761369924704,0.7,194.03,193.98,43.28315715]
[1761369924904,16.18107438,194.03,193.98,43.28315715]
[1761369925288,0.7,194.02,193.98,43.28315715]
[1761369926115,0.7,194.02,193.98,5.15490583]
[1761369926304,0.7,194.02,193.98,7.70315715]
[1761369927395,0.7,194.02,193.99,7.7029487]
[1761369927588,15.48107438,194.03,194.0,2.54825132]
[1761369927796,0.7,194.03,194.0,2.54825132]
[1761369927976,0.7,194.02,194.0,2.54825132]
[1761369928905,0.7,194.02,193.99,5.15469738]
[1761369929077,0.7,194.02,193.97,5.25523529]
[1761369929390,8.40240288,194.02,193.97,5.25523529]
[1761369929596,8.40240288,194.02,193.97,0.1]
[1761369929815,2.54825132,194.0,193.97,0.1]
[1761369930192,0.7,193.99,193.97,0.1]
[1761369933701,3.24825132,193.99,193.97,0.1]
[1761369933900,8.40317638,193.99,193.97,0.1]
[1761369934204,0.7,193.98,193.97,0.1]
[1761369935010,0.7,194.01,193.97,2.64825132]
[1761369935306,22.88,194.04,194.0,2.54825132]
[1761369935509,30.58158776,194.05,194.0,2.54825132]
[1761369935706,0.7,194.04,194.0,2.54825132]
[1761369935884,39.3,194.03,194.0,7.7028075]
[1761369936088,39.3,194.03,194.02,2.54825132]
[1761369936308,2.54825132,194.08,194.02,2.54825132]
[1761369936511,0.7,194.05,194.02,2.54825132]
[1761369937400,0.7,194.05,194.02,7.70231327]
[1761369941312,0.7,194.05,194.01,7.7026248]
[1761369942808,0.7,194.05,194.01,8.3726248]
[1761369943031,0.7,194.05,194.01,7.7026248]
[1761369944409,0.7,194.05,194.02,7.70225382]
[1761369946413,26.0,194.06,194.03,3.21825132]
[1761369946628,26.7,194.06,194.03,3.21825132]
[1761369946831,26.7,194.06,194.03,2.54825132]
[1761369947919,26.0,194.06,194.04,3.21825132]
[1761369948099,26.0,194.06,194.04,2.54825132]
[1761369948299,26.0,194.06,194.05,2.54825132]
[1761369948499,26.7,194.06,194.03,5.15357891]
[1761369948706,26.7,194.06,194.03,7.70183023]
[1761369948919,26.0,194.06,194.04,2.54825132]
[1761369949523,0.7,194.07,194.05,5.153311]
[1761369950822,0.7,194.07,194.04,6.78607601]
[1761369953443,0.7,194.07,194.04,5.15357658]
[1761369953610,0.7,194.07,194.04,6.78607601]
[1761369953813,0.7,194.07,194.04,5.15357658]
[1761369954025,0.7,194.07,194.04,6.78607601]
[1761369960932,0.7,194.07,194.03,5.15384218]
[1761369961131,0.7,194.07,194.03,6.78634161]
[1761369961321,2.33249943,194.07,194.03,5.15384218]
[1761369961521,0.7,194.07,194.03,5.15384218]
[1761369961825,0.71,194.06,194.03,5.15384218]
[1761369962141,0.71,194.06,194.03,6.78634161]
[1761369963439,18.31,194.08,194.03,19.67094708]
[1761369963618,0.71,194.07,194.04,2.34249943]
[1761369964024,0.71,194.07,194.04,1.63249943]
[1761369964449,0.71,194.07,194.05,5.153311]
[1761369965135,17.6,194.08,194.05,7.49581043]
[1761369965524,17.6,194.08,194.07,1.63249943]
[1761369965725,102.2,194.12,194.07,1.63249943]
[1761369965952,102.91,194.12,194.08,2.34249943]
[1761369966131,102.91,194.12,194.09,1.63249943]
[1761369966850,102.91,194.12,194.1,5.15198351]
[1761369968644,0.71,194.12,194.1,5.15198351]
[1761369968842,122.04541638,194.17,194.11,1.63249943]
[1761369969042,0.71,194.15,194.12,1.63249943]
[1761369970637,116.89528333,194.17,194.12,1.63249943]
[1761369970843,0.71,194.16,194.13,5.15118734]
[1761369974353,36.31,194.18,194.13,7.49368677]
[1761369974534,0.71,194.17,194.13,7.49368677]
[1761369974844,0.71,194.17,194.13,5.15118734]
[1761369975152,0.71,194.17,194.13,7.49368677]
[1761369976246,0.71,194.17,194.13,6.78368677]
[1761369977538,0.71,194.17,194.13,7.49368677]
[1761369980859,0.71,194.17,194.14,7.46334876]
[1761369981059,0.71,194.17,194.14,6.78334876]
[1761369985463,0.71,194.17,194.13,6.78368677]
[1761369987952,0.71,194.17,194.14,6.78327161]
[1761369992558,0.71,194.17,194.13,5.15118734]
[1761369992763,0.71,194.17,194.14,1.63249943]
[1761369993661,0.71,194.17,194.14,6.78332562]
[1761369999077,0.71,194.17,194.14,1.63249943]
[1761370000475,0.71,194.17,194.13,6.78368677]
[1761370001074,1.63249943,194.15,194.1,5.15198351]
[1761370001478,0.68,194.14,194.1,5.15198351]
[1761370001664,0.68,194.14,194.1,6.78448294]
[1761370006078,0.68,194.14,194.12,5.1514527]
[1761370007380,1.63249943,194.16,194.12,5.1514527]
[1761370007568,1.63249943,194.16,194.12,5.8314527]
[1761370007767,0.68,194.15,194.12,7.46395213]
[1761370008362,0.68,194.15,194.12,6.78395213]
[1761370008563,23.56,194.18,194.14,1.63249943]
[1761370008971,22.88,194.18,194.14,0.68]
[1761370009275,0.68,194.17,194.14,2.31249943]
[1761370009476,0.68,194.17,194.14,1.63249943]
[1761370009886,0.68,194.17,194.14,6.78340521]
[1761370010382,1.63249943,194.2,194.14,7.46340521]
[1761370010681,0.69,194.2,194.15,1.63249943]
[1761370010975,0.69,194.19,194.15,1.63249943]
[1761370011380,0.69,194.19,194.16,5.15039142]
[1761370012672,0.69,194.19,194.15,7.69855937]
[1761370016084,0.69,194.19,194.15,8.37855937]
[1761370016889,107.34886234,194.22,194.16,3.22790267]
[1761370016890,104.74790267,194.22,194.16,3.22790267]
[1761370017079,0.69,194.2,194.16,3.22790267]
[1761370017870,0.69,194.2,194.16,2.54790267]
[1761370018088,0.69,194.2,194.17,5.15012617]
[1761370020389,102.2,194.22,194.19,2.54790267]
[1761370020572,0.66,194.22,194.19,2.54790267]
[1761370021604,3.20790267,194.22,194.17,5.15012617]
[1761370021810,2.54790267,194.2,194.17,5.15012617]
[1761370022174,0.66,194.19,194.17,5.15012617]
[1761370022575,0.66,194.19,194.15,5.15042068]
[1761370023393,0.66,194.19,194.15,7.69832335]
[1761370028883,0.66,194.19,194.14,2.54790267]
[1761370029083,3.20790267,194.19,194.13,7.69882991]
[1761370029392,0.66,194.19,194.13,7.69882991]
[1761370029571,0.66,194.18,194.13,7.69882991]
[1761370030675,0.66,194.18,194.15,5.1506567]
[1761370033699,0.66,194.18,194.14,5.15088885]
[1761370033878,28.36,194.18,194.14,5.15088885]
[1761370034076,0.66,194.18,194.14,5.15088885]
[1761370034271,0.66,194.17,194.14,5.15088885]
[1761370035777,0.66,194.17,194.14,8.37879152]
[1761370036076,0.66,194.17,194.14,7.69879152]
[1761370037201,0.66,194.17,194.14,5.15088885]
[1761370038899,0.66,194.22,194.16,2.54790267]
[1761370039105,0.66,194.21,194.17,2.54790267]
[1761370039406,49.26,194.21,194.16,2.54790267]
[1761370039581,0.66,194.21,194.16,2.54790267]
[1761370039982,0.66,194.21,194.17,5.15012617]
[1761370047006,2.54790267,194.19,194.14,2.54790267]
[1761370047199,2.54790267,194.18,194.13,7.69909001]
[1761370047412,2.54790267,194.18,194.13,5.15118734]
[1761370047589,0.68,194.17,194.13,5.15118734]
[1761370048802,3.22790267,194.17,194.13,5.15118734]
[1761370049312,0.68,194.16,194.13,5.15118734]
[1761370051711,0.68,194.16,194.12,12.84841912]
[1761370051903,3.22790267,194.16,194.12,10.30051645]
[1761370052310,0.68,194.15,194.12,10.30051645]
[1761370056016,3.22790267,194.15,194.09,25.42790267]
[1761370056222,3.22790267,194.15,194.1,5.14992612]
[1761370056419,0.68,194.14,194.1,5.14992612]
[1761370056723,0.68,194.14,194.1,10.30184658]
[1761370057125,0.68,194.14,194.09,7.7000999]
[1761370057514,3.22790267,194.14,194.09,19.26657511]
[1761370057925,0.68,194.13,194.09,19.26657511]
[1761370059226,0.68,194.13,194.09,16.71867244]
[1761370059526,2.54790267,194.12,194.08,5.15248557]
[1761370059721,2.54790267,194.12,194.07,12.85133923]
[1761370059933,0.68,194.11,194.07,12.85133923]
[1761370061017,0.68,194.11,194.07,13.54133923]
[1761370061210,0.68,194.11,194.08,7.70030104]
[1761370070031,7.69882468,194.14,194.09,2.54790267]
[1761370070238,0.67,194.13,194.1,0.7]
[1761370070438,0.67,194.13,194.09,2.54790267]
[1761370074521,0.67,194.13,194.09,7.70004488]
[1761370074843,0.67,194.13,194.09,6.78379391]
[1761370076850,5.15092201,194.14,194.1,2.3316517]
[1761370077051,5.82092201,194.14,194.1,2.3316517]
[1761370077223,0.67,194.13,194.09,1.6316517]
[1761370077425,0.67,194.13,194.09,2.3316517]
[1761370078144,0.67,194.13,194.09,7.48387873]
[1761370081526,0.67,194.13,194.09,5.85222703]
[1761370081726,0.67,194.13,194.09,7.48387873]
[1761370085450,0.67,194.13,194.09,1.6316517]
[1761370086248,15.47388781,194.15,194.1,1.6316517]
[1761370086549,0.68,194.15,194.11,1.6316517]
[1761370086748,15.4722917,194.16,194.14,1.6316517]
[1761370086951,0.68,194.18,194.15,1.6316517]
[1761370087127,0.68,194.18,194.16,1.6316517]
[1761370087328,72.19798098,194.21,194.16,6.7819791]
[1761370087552,0.68,194.2,194.16,7.4419791]
[1761370087729,0.68,194.2,194.16,6.7819791]
[1761370089136,5.82936748,194.2,194.16,1.6316517]
[1761370089337,5.82936748,194.2,194.15,7.44226018]
[1761370089537,0.68,194.19,194.15,7.44226018]
[1761370095546,0.68,194.19,194.14,1.6316517]
[1761370095857,0.68,194.19,194.15,0.66]
[1761370096235,0.68,194.19,194.14,2.2916517]
[1761370096943,0.68,194.19,194.15,5.8106567]
[1761370099352,0.68,194.19,194.15,7.4423084]
[1761370106565,0.68,194.19,194.15,6.7823084]
[1761370107057,0.68,194.19,194.15,7.4623084]
[1761370110765,14.36815377,194.21,194.16,2.3116517]
[1761370111062,2.3516517,194.22,194.17,1.6316517]
[1761370111063,13.5977306,194.22,194.17,1.6316517]
[1761370111265,13.5977306,194.22,194.17,2.3116517]
[1761370111468,12.8777306,194.22,194.18,2.3116517]
[1761370111767,0.72,194.21,194.18,2.3116517]
[1761370112446,0.72,194.21,194.18,1.6316517]
[1761370115470,0.72,194.21,194.18,6.7814589]
[1761370122685,0.72,194.21,194.17,1.6316517]
[1761370123658,16.18670791,194.21,194.17,6.78170147]
[1761370124078,0.72,194.2,194.17,6.78170147]
[1761370129280,1.6316517,194.19,194.14,1.6316517]
[1761370129459,14.50829347,194.19,194.14,1.6316517]
[1761370129661,0.72,194.18,194.14,1.6316517]
[1761370130385,0.72,194.18,194.15,5.1506567]
[1761370135687,0.72,194.18,194.15,6.7823084]
[1761370135881,0.72,194.18,194.15,7.4523084]
[1761370136080,0.72,194.18,194.16,6.78192735]
[1761370136684,0.72,194.18,194.16,7.69801047]
[1761370137383,12.87664177,194.19,194.16,7.69801047]
[1761370137584,35.56,194.2,194.16,7.69801047]
[1761370137784,0.68,194.18,194.16,7.69801047]
[1761370138768,51.02830286,194.2,194.16,7.69801047]
[1761370138963,0.72,194.19,194.16,7.69801047]
[1761370139265,0.72,194.19,194.16,8.38801047]
[1761370139995,51.02830286,194.2,194.17,7.69770841]
[1761370140191,51.74830286,194.2,194.17,7.69770841]
[1761370140566,36.28,194.2,194.17,7.69770841]
[1761370140769,0.72,194.19,194.17,7.69770841]
[1761370141175,13.5971922,194.21,194.17,7.69770841]
[1761370141383,13.5971922,194.21,194.18,3.23773482]
[1761370141770,13.5971922,194.21,194.18,2.54773482]
[1761370141973,12.8771922,194.21,194.18,2.54773482]
[1761370142189,0.72,194.2,194.17,8.38770841]
[1761370142391,0.72,194.2,194.17,7.69770841]
[1761370143069,102.2,194.23,194.19,2.54773482]
[1761370143271,102.2,194.23,194.2,8.3870654]
[1761370143472,23.6,194.24,194.2,8.3870654]
[1761370143667,0.72,194.25,194.23,2.54773482]
[1761370143885,13.5660508,194.24,194.22,2.54773482]
[1761370144191,0.72,194.25,194.22,2.54773482]
[1761370144396,0.72,194.25,194.22,3.23773482]
[1761370144904,0.72,194.25,194.22,8.38642565]
[1761370145078,0.72,194.25,194.22,7.69642565]
[1761370147598,0.72,194.25,194.22,5.14869083]
[1761370147794,0.72,194.25,194.22,5.83869083]
[1761370148102,0.72,194.25,194.22,8.38642565]
[1761370150591,0.72,194.26,194.22,8.38642565]
[1761370151197,0.72,194.26,194.23,3.23773482]
[1761370151800,0.72,194.26,194.23,2.54773482]
[1761370154799,0.72,194.26,194.23,7.69619367]
[1761370155295,3.26773482,194.26,194.21,18.0226809]
[1761370155493,3.26773482,194.26,194.21,7.69655004]
[1761370155792,3.26773482,194.25,194.21,5.14881522]
[1761370156703,3.26773482,194.24,194.2,5.14929304]
[1761370157098,0.72,194.23,194.2,5.14929304]
[1761370159802,0.72,194.23,194.2,7.69702786]
[1761370163208,0.72,194.23,194.2,5.14929304]
[1761370166004,0.72,194.23,194.19,5.14959575]
[1761370166607,0.67,194.24,194.21,2.54773482]
[1761370166912,0.67,194.23,194.2,2.54773482]
[1761370167101,0.67,194.23,194.2,18.01205091]
[1761370168315,0.67,194.23,194.21,5.14906544]
[1761370179438,3.21773482,194.23,194.17,26.29950345]
[1761370179724,3.21773482,194.23,194.17,62.51950345]
[1761370179910,0.67,194.22,194.17,62.51950345]
[1761370180425,0.67,194.22,194.18,5.80986095]
[1761370181916,0.67,194.22,194.18,5.14986095]
[1761370182114,0.67,194.22,194.18,7.69759577]
[1761370182330,0.67,194.22,194.18,8.35759577]
[1761370185048,0.67,194.22,194.2,5.14933058]
[1761370188131,7.6957885,194.25,194.2,5.14933058]
[1761370188430,0.67,194.25,194.22,2.54773482]
[1761370192327,0.67,194.25,194.21,7.69669868]
[1761370194238,0.67,194.25,194.21,8.36669868]
[1761370194538,0.67,194.25,194.21,7.69669868]
[1761370195425,0.67,194.25,194.21,8.36669868]
[1761370195736,0.67,194.25,194.21,7.69669868]
[1761370196827,0.67,194.25,194.21,6.77861216]
[1761370199822,0.67,194.25,194.21,7.44861216]
[1761370200443,0.67,194.25,194.22,2.2996483]
[1761370200940,0.67,194.25,194.22,1.6296483]
[1761370201335,0.67,194.25,194.21,7.44861216]
[1761370202539,1.6296483,194.24,194.19,6.77924405]
[1761370202937,0.72,194.23,194.19,6.77924405]
[1761370206560,0.72,194.23,194.2,6.77882897]
[1761370211966,0.72,194.23,194.2,5.14918067]
[1761370214354,0.72,194.23,194.2,6.77882897]
[1761370216869,0.72,194.23,194.2,5.14918067]
[1761370217445,6.97785018,194.27,194.21,0.67]
[1761370217650,2.3496483,194.26,194.21,0.67]
[1761370217875,1.6296483,194.26,194.2,1.6296483]
[1761370218068,0.72,194.25,194.2,2.2996483]
[1761370218582,0.72,194.25,194.2,7.44887998]
[1761370220761,7.49768325,194.25,194.2,6.77887998]
[1761370220978,7.49768325,194.25,194.2,5.14923168]
[1761370221283,2.3296483,194.24,194.2,5.14923168]
[1761370221685,0.7,194.23,194.19,6.77920481]
[1761370221856,0.7,194.23,194.19,5.14955651]
[1761370222355,0.7,194.23,194.2,1.6296483]
[1761370222559,0.7,194.24,194.21,1.6296483]
[1761370223070,0.7,194.24,194.21,6.77863481]
[1761370223454,0.7,194.24,194.21,7.45863481]
[1761370224566,0.7,194.24,194.21,6.77863481]
[1761370225179,1.8296483,194.27,194.21,6.77863481]
[1761370225366,0.7,194.26,194.22,1.6296483]
[1761370226281,0.7,194.26,194.22,6.77829958]
[1761370226791,0.2,194.27,194.23,2.3096483]
[1761370227281,0.9,194.27,194.23,2.3096483]
[1761370227790,0.7,194.26,194.23,2.3096483]
[1761370228180,0.7,194.26,194.24,5.14827018]
[1761370228780,0.2,194.27,194.24,5.82827018]
[1761370228988,0.9,194.27,194.24,5.14827018]
[1761370229492,0.7,194.26,194.24,5.14827018]
[1761370233893,0.7,194.26,194.23,7.20997111]
[1761370234100,1.6296483,194.25,194.21,16.02554065]
[1761370234282,2.3296483,194.26,194.22,7.40870238]
[1761370234601,0.7,194.25,194.22,7.40870238]
[1761370235891,0.7,194.25,194.23,5.14853524]
[1761370237300,0.7,194.26,194.23,5.14853524]
[1761370252520,0.7,194.26,194.2,12.8726721]
[1761370252724,0.7,194.26,194.21,1.6296483]
[1761370252927,0.7,194.26,194.21,12.32412693]
[1761370253525,0.7,194.26,194.21,17.47299583]
[1761370253827,2.3296483,194.26,194.21,17.47299583]
[1761370254203,0.67,194.25,194.21,17.47299583]
[1761370256026,0.67,194.25,194.21,15.84334753]
[1761370256220,0.67,194.25,194.21,17.47299583]
[1761370256403,0.67,194.25,194.21,6.7785172]
[1761370256732,0.67,194.25,194.21,7.69528579]
[1761370258927,3.21641689,194.25,194.2,23.15842214]
[1761370259125,2.54641689,194.24,194.19,2.54641689]
[1761370259326,3.21641689,194.24,194.19,2.54641689]
[1761370259532,0.67,194.23,194.19,2.54641689]
[1761370260533,0.67,194.23,194.19,5.14959575]
[1761370260845,0.67,194.23,194.19,7.69601264]
[1761370267652,2.54641689,194.21,194.15,0.67]
[1761370267814,2.54641689,194.2,194.15,36.21]
[1761370268015,2.54641689,194.2,194.15,38.75641689]
[1761370268214,0.67,194.19,194.16,0.67]
[1761370268823,0.67,194.19,194.16,5.82028008]
[1761370269735,0.67,194.19,194.16,5.15028008]
[1761370269924,0.67,194.19,194.15,48.38540108]
[1761370270715,0.67,194.19,194.15,49.05540108]
[1761370272438,0.67,194.19,194.15,48.38540108]
[1761370272946,3.21641689,194.19,194.15,5.15040595]
[1761370273121,18.68471975,194.19,194.15,5.15040595]
[1761370273323,0.67,194.18,194.15,5.15040595]
[1761370274234,0.67,194.18,194.14,5.15092201]
[1761370275444,0.67,194.18,194.14,7.6973389]
[1761370275745,0.67,194.18,194.14,8.3673389]
[1761370276344,0.67,194.18,194.15,2.54641689]
[1761370276526,0.67,194.21,194.17,2.54641689]
[1761370276733,15.46830286,194.2,194.17,2.54641689]
[1761370277131,16.13830286,194.2,194.17,2.54641689]
[1761370277631,0.67,194.19,194.17,2.54641689]
[1761370278121,0.67,194.19,194.16,7.69678614]
[1761370278630,5.82036925,194.19,194.16,7.69678614]
[1761370283048,0.72,194.18,194.16,7.69678614]
[1761370283637,0.72,194.18,194.16,5.15036925]
[1761370287052,0.72,194.18,194.13,61.88477807]
[1761370287257,3.26641689,194.18,194.14,35.56]
[1761370287448,13.56638374,194.18,194.14,35.56]
[1761370287638,0.72,194.17,194.14,35.56]
[1761370287950,0.72,194.17,194.13,5.15113981]
[1761370288953,13.59924971,194.17,194.13,5.15113981]
[1761370289254,0.72,194.16,194.13,5.15113981]
[1761370290552,0.72,194.16,194.13,7.6975567]
[1761370292657,0.72,194.16,194.12,7.69786959]
[1761370297758,0.72,194.16,194.12,5.1514527]
[1761370297961,2.54641689,194.15,194.1,5.15179327]
[1761370298137,0.72,194.14,194.1,5.15179327]
[1761370298337,0.72,194.14,194.1,7.69821016]
[1761370298853,16.19308971,194.14,194.1,7.69821016]